fUST/lending_fUST_20241115
["ID","MTS","AMOUNT","RATE_DAILY","PERIOD"]
[342259352,1731672639840,-500.0,0.00013698,2]
[342259353,1731672639851,-500.0,0.00013698,2]
[342259354,1731672639865,-348.01673476,0.00013698,2]
[342259355,1731672639876,-100.13366888,0.00013698,2]
[342259356,1731672639938,-235.62282076,0.00013698,2]
[342259357,1731672639949,-512.58873141,0.00013698,2]
[342259358,1731672639965,-500.0,0.00013698,2]
[342259359,1731672639976,-209.10631561,0.00013698,2]
[342259360,1731672639987,-500.0,0.00013698,2]
[342259361,1731672639998,-779.17,0.00013698,2]
[342259362,1731672640009,-500.0,0.00013698,2]
[342259363,1731672640021,-500.0,0.00013698,2]
[342259364,1731672640033,-500.0,0.00013698,2]
[342259365,1731672640046,-506.4865621,0.00013698,2]
[342259366,1731672640057,-163.72428959,0.00013698,2]
[342259392,1731672642862,-336.27571041,0.00013698,2]
[342259393,1731672642873,-500.0,0.00013698,2]
[342259394,1731672642883,-539.41064134,0.00013698,2]
[342259395,1731672642895,-500.0,0.00013698,2]
[342259396,1731672642906,-549.6517723,0.00013698,2]
[342259397,1731672642916,-333.78920527,0.00013698,2]
[342259398,1731672642927,-505.20184171,0.00013698,2]
[342259400,1731672642938,-500.0,0.00013698,2]
[342259401,1731672642949,-1179.16,0.00013698,2]
[342259402,1731672642959,-1876.36,0.00013698,2]
[342259403,1731672642970,-113.37289183,0.00013698,2]
[342259404,1731672642984,-391.38086141,0.00013698,2]
[342259405,1731672642994,-357.87632767,0.00013698,2]
[342259458,1731672645798,-142.12367233,0.00013698,2]
[342259459,1731672645818,-319.54390187,0.00013698,2]
[342259460,1731672645834,-503.44423665,0.00013698,2]
[342259461,1731672645848,-175.67259189,0.00013698,2]
[342259462,1731672646275,-293.19945781,0.00013698,2]
[342259463,1731672790222,161.615222,0.00023836,120]
[342259464,1731672977911,1315.83267177,0.00017,6]
[342259466,1731673054576,409.51,0.00010959,2]
[342259497,1731673422516,545.5364741,0.00010956,2]
[342259498,1731673436744,1166.71132,0.0001105,2]
[342259504,1731673619808,1166.71132,0.0001105,2]
[342259532,1731673728300,24900.0,0.00010836,2]
[342259579,1731673832023,-250.0,0.00011199,2]
[342259581,1731673832034,-250.0,0.00011312,2]
[342259583,1731673832045,-753.9356112,0.00011475,2]
[342259585,1731673832055,-1260.0548708,0.00011504,2]
[342259587,1731673832064,-544.2429696,0.00011505,2]
[342259588,1731673832074,-587.14922103,0.00011731,2]
[342259590,1731673832086,-2301.7770452,0.00012081,2]
[342259592,1731673832096,-164.991924,0.00012716,2]
[342259594,1731673832107,-164.991924,0.00012727,2]
[342259596,1731673832118,-164.991924,0.00012738,2]
[342259598,1731673832128,-164.991924,0.00012748,2]
[342259600,1731673832140,-164.991924,0.00012759,2]
[342259602,1731673832150,-164.991924,0.00012769,2]
[342259604,1731673832160,-164.991924,0.0001278,2]
[342259606,1731673832169,-234.7112773,0.0001286,2]
[342259608,1731673832179,-631.81300806,0.00013498,2]
[342259610,1731673832188,-300.0,0.00013516,2]
[342259612,1731673832197,-300.0,0.00013516,2]
[342259614,1731673832207,-1815.96626345,0.00013517,2]
[342259616,1731673832217,-1616.83991309,0.00013532,2]
[342259618,1731673832226,-10153.05943776,0.00013561,2]
[342259620,1731673832236,-53746.18531772,0.00013598,2]
[342259621,1731673832246,-1616.83991308,0.00013617,2]
[342259624,1731673832255,-500.0,0.00013673,2]
[342259625,1731673832265,-500.0,0.00013673,2]
[342259627,1731673832277,-512.19293788,0.00013673,2]
[342259630,1731673832287,-337.82702587,0.00013673,2]
[342259632,1731673832297,-500.0,0.00013673,2]
[342259634,1731673832307,-500.0,0.00013673,2]
[342259636,1731673832317,-500.0,0.00013673,2]
[342259637,1731673832327,-500.0,0.00013673,2]
[342259638,1731673832337,-500.0,0.00013673,2]
[342259639,1731673832347,-500.0,0.00013673,2]
[342259640,1731673832357,-600.0,0.00013698,2]
[342259641,1731673832367,-500.0,0.00013698,2]
[342259642,1731673832378,-500.0,0.00013698,2]
[342259643,1731673832397,-500.0,0.00013698,2]
[342259644,1731673832407,-500.0,0.00013698,2]
[342259645,1731673832416,-525.37611417,0.00013698,2]
[342259646,1731673832425,-368.07827566,0.00013698,2]
[342259647,1731673832438,-500.0,0.00013698,2]
[342259648,1731673832448,-500.0,0.00013698,2]
[342259649,1731673832458,-500.0,0.00013698,2]
[342259650,1731673832467,-500.0,0.00013698,2]
[342259651,1731673832477,-500.0,0.00013698,2]
[342259652,1731673832488,-500.0,0.00013698,2]
[342259653,1731673832499,-166.50959834,0.00013698,2]
[342259654,1731673832509,-499.99999999,0.00013698,2]
[342259655,1731673832520,-506.63559669,0.00013698,2]
[342259656,1731673832530,-232.72586013,0.00013698,2]
[342259669,1731673838140,-250.0,0.00011087,2]
[342259670,1731673838149,-1089.20096212,0.00013598,2]
[342259671,1731673838159,-323.11433513,0.00013698,2]
[342259672,1731673838168,-151.0,0.00013698,2]
[342259673,1731673838178,-324.27285184,0.00013698,2]
[342259674,1731673838187,-158.5279275,0.00013698,2]
[342259676,1731673838196,-176.63774978,0.00013698,2]
[342259677,1731673838206,-500.0,0.00013698,2]
[342259679,1731673838215,-500.0,0.00013698,2]
[342259681,1731673838224,-500.0,0.00013698,2]
[342259682,1731673838233,-441.422258,0.00013698,2]
[342259683,1731673838242,-441.422258,0.00013698,2]
[342259684,1731673838252,-500.0,0.00013698,2]
[342259685,1731673838261,-441.422258,0.00013698,2]
[342259686,1731673838270,-441.422258,0.00013698,2]
[342259687,1731673838280,-634.11945719,0.00013698,2]
[342259688,1731673838289,-500.0,0.00013698,2]
[342259689,1731673838299,-500.0,0.00013698,2]
[342259690,1731673838308,-500.0,0.00013698,2]
[342259691,1731673838317,-500.0,0.00013698,2]
[342259692,1731673838326,-166.766722,0.00013698,2]
[342259693,1731673838336,-607.2,0.00013698,2]
[342259694,1731673838345,-166.766722,0.00013698,2]
[342259695,1731673838355,-500.0,0.00013698,2]
[342259696,1731673838365,-500.0,0.00013698,2]
[342259697,1731673838375,-500.0,0.00013698,2]
[342259698,1731673838387,-169.02725393,0.00013698,2]
[342259699,1731673838396,-500.0,0.00013698,2]
[342259700,1731673838406,-280.011523,0.00013698,2]
[342259701,1731673838416,-280.011523,0.00013698,2]
[342259702,1731673838427,-500.0,0.00013698,2]
[342259703,1731673838438,-280.011523,0.00013698,2]
[342259704,1731673838456,-280.011523,0.00013698,2]
[342259705,1731673838473,-500.0,0.00013698,2]
[342259706,1731673838483,-500.0,0.00013698,2]
[342259707,1731673838492,-500.0,0.00013698,2]
[342259708,1731673838501,-151.0,0.00013698,2]
[342259709,1731673838511,-151.0,0.00013698,2]
[342259710,1731673838520,-151.0,0.00013698,2]
[342259711,1731673838530,-151.0,0.00013698,2]
[342259712,1731673838539,-500.0,0.00013698,2]
[342259713,1731673838549,-500.0,0.00013698,2]
[342259714,1731673838558,-782.4,0.00013698,2]
[342259715,1731673838567,-500.0,0.00013698,2]
[342259716,1731673838576,-500.0,0.00013698,2]
[342259717,1731673838585,-500.0,0.00013698,2]
[342259718,1731673838594,-500.0,0.00013698,2]
[342259719,1731673838603,-500.0,0.00013698,2]
[342259720,1731673838612,-500.0,0.00013698,2]
[342259721,1731673838621,-170.295599,0.00013698,2]
[342259722,1731673838630,-170.295599,0.00013698,2]
[342259723,1731673838641,-485.85243521,0.00013698,2]
[342259724,1731673838650,-170.295599,0.00013698,2]
[342259725,1731673838659,-170.295599,0.00013698,2]
[342259726,1731673838668,-500.0,0.00013698,2]
[342259727,1731673838677,-500.0,0.00013698,2]
[342259728,1731673838686,-500.0,0.00013698,2]
[342259729,1731673838696,-500.0,0.00013698,2]
[342259730,1731673838704,-500.0,0.00013698,2]
[342259731,1731673838714,-791.31,0.00013698,2]
[342259732,1731673838724,-500.0,0.00013698,2]
[342259733,1731673838734,-500.0,0.00013698,2]
[342259734,1731673838743,-314.03099955,0.00013698,2]
[342259735,1731673838752,-397.276747,0.00013698,2]
[342259736,1731673838761,-397.276747,0.00013698,2]
[342259737,1731673838770,-500.0,0.00013698,2]
[342259738,1731673838779,-151.0,0.00013698,2]
[342259739,1731673838787,-397.276747,0.00013698,2]
[342259740,1731673838797,-209.744389,0.00013698,2]
[342259741,1731673838806,-397.276747,0.00013698,2]
[342259742,1731673838815,-500.0,0.00013698,2]
[342259743,1731673838825,-140.03101528,0.00013698,2]
[342259744,1731673838847,-359.96898472,0.00013698,2]
[342259745,1731673838856,-500.0,0.00013698,2]
[342259746,1731673838866,-151.0,0.00013698,2]
[342259747,1731673838876,-151.0,0.00013698,2]
[342259748,1731673838888,-501.46781319,0.00013698,2]
[342259749,1731673838901,-256.10970097,0.00013698,2]
[342259750,1731673838911,-598.03,0.00013698,2]
[342259751,1731673838920,-502.30048859,0.00013698,2]
[342259752,1731673838929,-151.0,0.00013698,2]
[342259753,1731673838939,-151.0,0.00013698,2]
[342259754,1731673838948,-502.37993586,0.00013698,2]
[342259755,1731673838958,-505.86696789,0.00013698,2]
[342259756,1731673838967,-500.0,0.00013698,2]
[342259757,1731673838977,-500.0,0.00013698,2]
[342259758,1731673838986,-500.0,0.00013698,2]
[342259759,1731673838996,-494.27987336,0.00013698,2]
[342259760,1731673839005,-437.3805846,0.00013698,2]
[342259761,1731673839014,-500.0,0.00013698,2]
[342259762,1731673839023,-500.0,0.00013698,2]
[342259763,1731673839033,-500.0,0.00013698,2]
[342259764,1731673839044,-500.0,0.00013698,2]
[342259765,1731673839054,-418.76188623,0.00013698,2]
[342259766,1731673839063,-500.0,0.00013698,2]
[342259767,1731673839072,-500.0,0.00013698,2]
[342259768,1731673839082,-500.0,0.00013698,2]
[342259769,1731673839092,-500.0,0.00013698,2]
[342259770,1731673839102,-500.0,0.00013698,2]
[342259771,1731673839112,-500.0,0.00013698,2]
[342259772,1731673839121,-500.0,0.00013698,2]
[342259773,1731673839130,-500.0,0.00013698,2]
[342259774,1731673839142,-523.3,0.00013698,2]
[342259775,1731673839152,-500.0,0.00013698,2]
[342259776,1731673839162,-2635.84,0.00013698,2]
[342259777,1731673839171,-903.833738,0.00013698,2]
[342259778,1731673839181,-903.833738,0.00013698,2]
[342259779,1731673839191,-500.0,0.00013698,2]
[342259780,1731673839201,-500.0,0.00013698,2]
[342259781,1731673839210,-500.0,0.00013698,2]
[342259782,1731673839219,-903.833738,0.00013698,2]
[342259783,1731673839228,-903.833738,0.00013698,2]
[342259784,1731673839238,-196.65691674,0.00013698,2]
[342259785,1731673839248,-500.0,0.00013698,2]
[342259786,1731673839257,-250.25419035,0.00013698,2]
[342259787,1731673839266,-151.0,0.00013698,2]
[342259788,1731673839276,-1000.0,0.00013698,2]
[342259789,1731673839285,-151.0,0.00013698,2]
[342259790,1731673839295,-500.0,0.00013698,2]
[342259791,1731673839304,-500.0,0.00013698,2]
[342259792,1731673839314,-515.89768243,0.00013698,2]
[342259793,1731673839323,-500.0,0.00013698,2]
[342259794,1731673839333,-2977.39,0.00013698,2]
[342259795,1731673839343,-2977.39,0.00013698,2]
[342259796,1731673839353,-151.0,0.00013698,2]
[342259797,1731673839363,-2977.39,0.00013698,2]
[342259798,1731673839372,-2977.39,0.00013698,2]
[342259799,1731673839384,-267.115183,0.00013698,2]
[342259800,1731673839394,-2977.39,0.00013698,2]
[342259801,1731673839403,-2977.39,0.00013698,2]
[342259802,1731673839413,-2977.39,0.00013698,2]
[342259803,1731673839422,-500.0,0.00013698,2]
[342259805,1731673839432,-500.0,0.00013698,2]
[342259806,1731673839446,-500.0,0.00013698,2]
[342259808,1731673839456,-502.76603671,0.00013698,2]
[342259810,1731673839465,-500.0,0.00013698,2]
[342259812,1731673839474,-500.0,0.00013698,2]
[342259813,1731673839485,-500.0,0.00013698,2]
[342259814,1731673839495,-501.4817952,0.00013698,2]
[342259815,1731673839504,-500.0,0.00013698,2]
[342259816,1731673839515,-500.0,0.00013698,2]
[342259818,1731673839525,-500.0,0.00013698,2]
[342259819,1731673839535,-500.0,0.00013698,2]
[342259820,1731673839544,-500.0,0.00013698,2]
[342259821,1731673839553,-500.0,0.00013698,2]
[342259822,1731673839562,-500.0,0.00013698,2]
[342259823,1731673839571,-500.0,0.00013698,2]
[342259824,1731673839581,-500.0,0.00013698,2]
[342259825,1731673839590,-500.0,0.00013698,2]
[342259826,1731673839599,-500.0,0.00013698,2]
[342259827,1731673839608,-500.0,0.00013698,2]
[342259828,1731673839618,-500.0,0.00013698,2]
[342259829,1731673839627,-500.0,0.00013698,2]
[342259830,1731673839638,-500.0,0.00013698,2]
[342259831,1731673839647,-500.0,0.00013698,2]
[342259832,1731673839656,-273.28722468,0.00013698,2]
[342259833,1731673839665,-225.89063262,0.00013698,2]
[342259834,1731673839674,-360.21188556,0.00013698,2]
[342259836,1731673839683,-196.58976254,0.00013698,2]
[342259838,1731673839692,-187.86153227,0.00013698,2]
[342259839,1731673839701,-500.0,0.00013698,2]
[342259841,1731673839711,-500.0,0.00013698,2]
[342259842,1731673839719,-500.0,0.00013698,2]
[342259843,1731673839728,-500.0,0.00013698,2]
[342259844,1731673839738,-500.0,0.00013698,2]
[342259846,1731673839747,-165.19761704,0.00013698,2]
[342259848,1731673839757,-191.557014,0.00013698,2]
[342259850,1731673839766,-191.557014,0.00013698,2]
[342259851,1731673839775,-191.557014,0.00013698,2]
[342259852,1731673839784,-274.53504341,0.00013698,2]
[342259853,1731673839799,-225.46495659,0.00013698,2]
[342259854,1731673839808,-191.557014,0.00013698,2]
[342259855,1731673839817,-191.557014,0.00013698,2]
[342259856,1731673839827,-191.557014,0.00013698,2]
[342259857,1731673839836,-500.0,0.00013698,2]
[342259858,1731673839846,-500.0,0.00013698,2]
[342259859,1731673839855,-500.0,0.00013698,2]
[342259860,1731673839864,-500.0,0.00013698,2]
[342259861,1731673839873,-151.0,0.00013698,2]
[342259862,1731673839884,-151.0,0.00013698,2]
[342259863,1731673839893,-151.0,0.00013698,2]
[342259864,1731673839902,-500.0,0.00013698,2]
[342259865,1731673839911,-500.0,0.00013698,2]
[342259866,1731673839920,-500.0,0.00013698,2]
[342259867,1731673839929,-500.0,0.00013698,2]
[342259868,1731673839939,-500.0,0.00013698,2]
[342259869,1731673839948,-153.166935,0.00013698,2]
[342259870,1731673839957,-151.0,0.00013698,2]
[342259871,1731673839966,-151.0,0.00013698,2]
[342259872,1731673839976,-151.0,0.00013698,2]
[342259873,1731673839986,-503.30390516,0.00013698,2]
[342259874,1731673839995,-518.34112927,0.00013698,2]
[342259875,1731673840004,-500.0,0.00013698,2]
[342259876,1731673840013,-500.0,0.00013698,2]
[342259877,1731673840022,-151.0,0.00013698,2]
[342259878,1731673840032,-151.0,0.00013698,2]
[342259879,1731673840043,-523.776931,0.00013698,2]
[342259880,1731673840052,-523.776931,0.00013698,2]
[342259881,1731673840062,-500.0,0.00013698,2]
[342259882,1731673840073,-523.776931,0.00013698,2]
[342259883,1731673840082,-500.0,0.00013698,2]
[342259884,1731673840092,-523.776931,0.00013698,2]
[342259885,1731673840101,-235.14398624,0.00013698,2]
[342259886,1731673840111,-549.04469954,0.00013698,2]
[342259887,1731673840120,-500.0,0.00013698,2]
[342259888,1731673840130,-500.0,0.00013698,2]
[342259889,1731673840142,-500.0,0.00013698,2]
[342259890,1731673840151,-500.0,0.00013698,2]
[342259891,1731673840160,-500.0,0.00013698,2]
[342259892,1731673840170,-500.0,0.00013698,2]
[342259893,1731673840179,-500.0,0.00013698,2]
[342259894,1731673840189,-500.0,0.00013698,2]
[342259895,1731673840199,-1346.34,0.00013698,2]
[342259896,1731673840208,-500.0,0.00013698,2]
[342259897,1731673840217,-500.0,0.00013698,2]
[342259898,1731673840226,-500.0,0.00013698,2]
[342259899,1731673840235,-500.0,0.00013698,2]
[342259900,1731673840244,-500.0,0.00013698,2]
[342259901,1731673840253,-896.1,0.00013698,2]
[342259902,1731673840263,-500.0,0.00013698,2]
[342259903,1731673840272,-500.0,0.00013698,2]
[342259904,1731673840281,-500.0,0.00013698,2]
[342259905,1731673840291,-500.0,0.00013698,2]
[342259906,1731673840300,-500.0,0.00013698,2]
[342259907,1731673840309,-454.99089046,0.00013698,2]
[342259908,1731673841805,-45.00910954,0.00013698,2]
[342259909,1731673841814,-382.62753508,0.00013698,2]
[342259929,1731673843140,-500.0,0.00013673,2]
[342259931,1731673843150,-117.37246492,0.00013698,2]
[342259933,1731673843159,-238.99615812,0.00013698,2]
[342259935,1731673843169,-438.13381256,0.00013698,2]
[342259937,1731673843178,-2295.75,0.00013698,2]
[342259939,1731673843187,-500.0,0.00013698,2]
[342259941,1731673843197,-500.0,0.00013698,2]
[342259943,1731673843206,-527.96753815,0.00013698,2]
[342259945,1731673843215,-500.0,0.00013698,2]
[342259946,1731673843224,-500.0,0.00013698,2]
[342259947,1731673843234,-500.0,0.00013698,2]
[342259949,1731673843243,-500.0,0.00013698,2]
[342259950,1731673843252,-2281.89,0.00013698,2]
[342259952,1731673843261,-504.81607176,0.00013698,2]
[342259953,1731673843270,-909.26,0.00013698,2]
[342259954,1731673843280,-504.83116868,0.00013698,2]
[342259955,1731673843289,-500.0,0.00013698,2]
[342259956,1731673843299,-500.0,0.00013698,2]
[342259957,1731673843308,-500.0,0.00013698,2]
[342259958,1731673843317,-500.0,0.00013698,2]
[342259959,1731673843326,-500.0,0.00013698,2]
[342259960,1731673843335,-500.0,0.00013698,2]
[342259961,1731673843457,-500.0,0.00013698,2]
[342259962,1731673843468,-419.97566652,0.00013698,2]
[342259975,1731673846072,-80.02433348,0.00013698,2]
[342259977,1731673846082,-155.533074,0.00013698,2]
[342259978,1731673846092,-63.80319905,0.00013698,2]
[342260025,1731675032436,-250.0,0.00011447,2]
[342260026,1731675032446,-250.0,0.00011563,2]
[342260027,1731675032456,-167.50662569,0.00012,2]
[342260028,1731675032466,-105.51796531,0.00012267,2]
[342260029,1731675032478,-194.48203469,0.00012267,2]
[342260030,1731675032487,-255.01296531,0.00012267,2]
[342260031,1731675032499,-44.98703469,0.00012267,2]
[342260032,1731675032509,-24900.0,0.00012268,2]
[342260033,1731675032519,-203.8440039,0.00012305,2]
[342260034,1731675032528,-2505.5925635,0.00012689,2]
[342260035,1731675032537,-4322.36167252,0.00013,2]
[342260036,1731675032547,-726.13397475,0.00013261,2]
[342260037,1731675032556,-274.50171508,0.00013461,2]
[342260038,1731675032565,-420.0,0.00013463,2]
[342260039,1731675032578,-10494.69956213,0.00013493,2]
[342260040,1731675032587,-420.0,0.00013494,2]
[342260041,1731675032596,-726.60801962,0.00013498,2]
[342260073,1731675038295,-243.49592826,0.00013498,2]
[342260074,1731675038304,-500.0,0.000135,2]
[342260075,1731675038313,-970.10394784,0.00013523,2]
[342260076,1731675038324,-970.10394784,0.00013548,2]
[342260077,1731675038333,-152.0,0.0001356,2]
[342260078,1731675038342,-970.10394784,0.00013573,2]
[342260080,1731675038351,-970.10394784,0.00013598,2]
[342260081,1731675038360,-65300.54932099,0.00013598,2]
[342260082,1731675038369,-14582.25935795,0.00013598,2]
[342260083,1731675038378,-1000.0,0.00013598,2]
[342260084,1731675038387,-800.000001,0.000136,2]
[342260085,1731675038396,-500.0,0.00013673,2]
[342260086,1731675038405,-500.0,0.00013673,2]
[342260087,1731675038414,-500.0,0.00013673,2]
[342260088,1731675038423,-504.76646644,0.00013673,2]
[342260089,1731675038432,-500.0,0.00013673,2]
[342260090,1731675038441,-500.0,0.00013673,2]
[342260091,1731675038451,-500.0,0.00013673,2]
[342260092,1731675038460,-501.10338782,0.00013673,2]
[342260093,1731675038471,-502.83671111,0.00013673,2]
[342260094,1731675038481,-23742.823192,0.0001369,2]
[342260095,1731675038491,-8889.74984412,0.0001369,2]
[342260106,1731675040652,-189.15026978,0.00013363,2]
[342260107,1731675040662,-87702.70261116,0.0001369,2]
[342260108,1731675040672,-150.01,0.00013697,2]
[342260109,1731675040681,-1783.96292464,0.00013697,2]
[342260123,1731675043168,-500.0,0.00013673,2]
[342260124,1731675043178,-923.98033488,0.00013697,2]
[342260125,1731675043224,-808.18021037,0.00013697,2]
[342260126,1731675043234,-151.0,0.00013698,2]
[342260127,1731675043244,-151.0,0.00013698,2]
[342260128,1731675043253,-996.875475,0.00013698,2]
[342260129,1731675043263,-996.875475,0.00013698,2]
[342260130,1731675043272,-151.0,0.00013698,2]
[342260131,1731675043281,-996.875475,0.00013698,2]
[342260132,1731675043291,-996.875475,0.00013698,2]
[342260133,1731675043300,-157.063331,0.00013698,2]
[342260135,1731675043309,-151.0,0.00013698,2]
[342260136,1731675043318,-151.0,0.00013698,2]
[342260138,1731675043330,-151.0,0.00013698,2]
[342260139,1731675043339,-151.0,0.00013698,2]
[342260140,1731675043349,-151.0,0.00013698,2]
[342260141,1731675043359,-151.0,0.00013698,2]
[342260142,1731675043368,-151.0,0.00013698,2]
[342260145,1731675043378,-151.0,0.00013698,2]
[342260146,1731675043387,-151.0,0.00013698,2]
[342260148,1731675043396,-151.0,0.00013698,2]
[342260150,1731675043405,-151.0,0.00013698,2]
[342260152,1731675043415,-151.0,0.00013698,2]
[342260154,1731675043424,-151.0,0.00013698,2]
[342260155,1731675043434,-151.0,0.00013698,2]
[342260156,1731675043443,-249.730646,0.00013698,2]
[342260157,1731675043453,-151.0,0.00013698,2]
[342260158,1731675043462,-151.0,0.00013698,2]
[342260159,1731675043471,-151.0,0.00013698,2]
[342260160,1731675043481,-151.0,0.00013698,2]
[342260161,1731675043491,-151.0,0.00013698,2]
[342260162,1731675043500,-151.0,0.00013698,2]
[342260163,1731675043510,-602.227974,0.00013698,2]
[342260164,1731675043518,-602.227974,0.00013698,2]
[342260165,1731675043527,-602.227974,0.00013698,2]
[342260166,1731675043537,-173.156778,0.00013698,2]
[342260167,1731675043547,-173.156778,0.00013698,2]
[342260168,1731675043555,-173.156778,0.00013698,2]
[342260169,1731675043565,-173.156778,0.00013698,2]
[342260170,1731675043574,-151.0,0.00013698,2]
[342260171,1731675043585,-151.0,0.00013698,2]
[342260172,1731675043594,-151.0,0.00013698,2]
[342260173,1731675043603,-151.0,0.00013698,2]
[342260174,1731675043612,-151.0,0.00013698,2]
[342260175,1731675043622,-151.0,0.00013698,2]
[342260176,1731675043631,-191.30105728,0.00013698,2]
[342260177,1731675043641,-602.1483199,0.00013698,2]
[342260178,1731675043651,-122.34172606,0.00013698,2]
[342260188,1731675046230,-35.78171677,0.00013698,2]
[342260189,1731675046240,-151.0,0.00013698,2]
[342260190,1731675046249,-151.0,0.00013698,2]
[342260191,1731675046259,-151.0,0.00013698,2]
[342260192,1731675046268,-28.51746831,0.00013698,2]
[342260242,1731676133954,8313.62292823,0.00017,6]
[342260369,1731676239171,-857.31175924,0.00011624,2]
[342260370,1731676239179,-300.0,0.00012544,2]
[342260372,1731676239190,-23.59485828,0.00012544,2]
[342260395,1731676243515,-276.40514172,0.00012544,2]
[342260396,1731676243524,-24900.0,0.00012545,2]
[342260397,1731676243534,-9421.17101276,0.0001349,2]
[342260399,1731676243543,-4876.79568522,0.0001359,2]
[342260401,1731676243554,-674.6817969,0.0001359,2]
[342260403,1731676243562,-544.65442734,0.0001359,2]
[342260404,1731676243571,-2499.37143416,0.00013598,2]
[342260437,1731676524398,154.105,0.00011,2]
[342260500,1731677025693,-300.0,0.00012667,2]
[342260501,1731677025715,-300.0,0.00012667,2]
[342260502,1731677025737,-24900.0,0.00012668,2]
[342260503,1731677025757,-421.5856672,0.00012676,2]
[342260504,1731677025778,-639.914158,0.0001272,2]
[342260505,1731677025799,-10494.69956213,0.00013201,2]
[342260506,1731677025820,-8243.52463613,0.00013498,2]
[342260507,1731677025841,-154.075,0.000135,6]
[342260508,1731677025862,-363.10295156,0.00013593,2]
[342260509,1731677025885,-171.6097509,0.00013598,2]
[342260510,1731677025906,-5177.25240693,0.00013598,2]
[342260511,1731677025928,-288.67560044,0.00013598,2]
[342260512,1731677025949,-1000.0,0.00013598,2]
[342260513,1731677025970,-9165.58880441,0.00013645,2]
[342260514,1731677025992,-500.0,0.00013673,2]
[342260515,1731677026013,-500.0,0.00013673,2]
[342260516,1731677026034,-500.0,0.00013673,2]
[342260517,1731677026054,-500.0,0.00013673,2]
[342260518,1731677026075,-500.0,0.00013673,2]
[342260519,1731677026096,-151.0,0.00013673,2]
[342260520,1731677026117,-151.0,0.00013673,2]
[342260521,1731677026139,-930.026448,0.00013673,2]
[342260522,1731677026161,-930.026448,0.00013673,2]
[342260523,1731677026182,-151.0,0.0001369,2]
[342260524,1731677026391,-930.026448,0.0001369,2]
[342260525,1731677026413,-930.026448,0.0001369,2]
[342260526,1731677026434,-1000.0,0.0001369,2]
[342260527,1731677026455,-150.01,0.00013697,2]
[342260528,1731677026482,-2930.10289158,0.00013697,2]
[342260529,1731677026504,-151.0,0.00013698,2]
[342260530,1731677026524,-151.0,0.00013698,2]
[342260531,1731677026545,-151.0,0.00013698,2]
[342260532,1731677026565,-151.0,0.00013698,2]
[342260533,1731677026584,-151.809455,0.00013698,2]
[342260534,1731677026605,-151.0,0.00013698,2]
[342260535,1731677026627,-151.0,0.00013698,2]
[342260536,1731677026648,-151.0,0.00013698,2]
[342260537,1731677026668,-151.0,0.00013698,2]
[342260538,1731677026688,-151.0,0.00013698,2]
[342260539,1731677026708,-151.0,0.00013698,2]
[342260540,1731677026730,-151.0,0.00013698,2]
[342260541,1731677026750,-151.0,0.00013698,2]
[342260542,1731677026770,-151.0,0.00013698,2]
[342260543,1731677026789,-151.0,0.00013698,2]
[342260544,1731677026811,-151.0,0.00013698,2]
[342260545,1731677026831,-151.0,0.00013698,2]
[342260546,1731677026853,-151.0,0.00013698,2]
[342260547,1731677026873,-152.238519,0.00013698,2]